bitfinex-derivatives/quotes_SOLF0:USTF0_20250325
["timestamp","ask_amount","ask_price","bid_price","bid_amount"]
[1742905894452,0.04967997,142.6,142.57,0.04769101]
[1742905894657,1.4018364,142.67,142.54,28.72]
[1742905894950,0.04608152,142.6,142.57,0.0490352]
[1742905895154,1.4018364,142.67,142.54,28.72]
[1742905895354,0.04588575,142.6,142.57,0.05386755]
[1742905895552,7.0101,142.64,142.58,7.0123]
[1742905895753,0.04502593,142.6,142.58,7.0123]
[1742905896161,0.04502593,142.6,142.59,35.7122]
[1742905896458,2.593e-05,142.6,142.59,35.7122]
[1742905896659,2.593e-05,142.6,142.59,42.7322]
[1742905896852,2.593e-05,142.6,142.59,7.02]
[1742905897053,2.593e-05,142.6,142.57,0.05281762]
[1742905898059,2.593e-05,142.6,142.59,7.0122]
[1742905899756,2.593e-05,142.6,142.58,7.0124]
[1742905899952,2.593e-05,142.6,142.57,0.05281762]
[1742905902159,7.0127,142.58,142.57,0.05281762]
[1742905906266,6.63015656,142.58,142.57,0.05281762]
[1742905908670,2.593e-05,142.6,142.57,0.05281762]
[1742905909773,2.593e-05,142.6,142.59,7.0122]
[1742905910174,2.593e-05,142.6,142.58,7.0124]
[1742905910371,2.593e-05,142.6,142.57,0.05281762]
[1742905910571,2.593e-05,142.6,142.57,7.07281762]
[1742905910972,2.593e-05,142.6,142.59,35.3922]
[1742905911370,2.593e-05,142.6,142.59,42.4122]
[1742905912174,14.0047,142.8,142.63,28.34]
[1742905912377,0.24946938,142.83,142.67,28.4]
[1742905912578,0.24946938,142.83,142.76,28.52]
[1742905913076,0.24946938,142.83,142.73,28.56]
[1742905913270,0.24946938,142.83,142.78,0.05196865]
[1742905913473,0.24946938,142.83,142.71,28.56]
[1742905913871,0.24946938,142.83,142.79,0.05384497]
[1742905914067,0.24946938,142.83,142.71,28.56]
[1742905914269,0.24946938,142.83,142.76,0.05286094]
[1742905914671,0.24946938,142.83,142.8,7.0016]
[1742905915073,0.24946938,142.83,142.8,7.04708235]
[1742905915372,0.24946938,142.83,142.8,0.04548235]
[1742905915767,7.0013,142.82,142.8,0.04548235]
[1742905915971,0.24946938,142.83,142.8,0.04548235]
[1742905916367,7.0014,142.81,142.8,0.04548235]
[1742905916574,0.24946938,142.83,142.68,624.92]
[1742905916773,0.24946938,142.83,142.71,7.0063]
[1742905917076,0.24946938,142.83,142.68,231.42]
[1742905917370,7.0016,142.81,142.68,231.42]
[1742905917579,0.0501738,142.77,142.74,0.0449334]
[1742905918877,7.0501738,142.77,142.65,38.42986829]
[1742905919072,33.75409581,142.78,142.65,38.42986829]
[1742905919272,33.75409581,142.75,142.65,38.42986829]
[1742905919476,33.75409581,142.75,142.62,9.60746707]
[1742905919775,1.40085452,142.77,142.65,7.0092]
[1742905919974,0.05241709,142.72,142.7,0.0506274]
[1742905920180,1.40085452,142.77,142.7,0.0506274]
[1742905920384,0.04622402,142.72,142.7,0.0506274]
[1742905920577,1.40085452,142.77,142.7,0.0506274]
[1742905921085,0.04622105,142.75,142.7,0.0506274]
[1742905921482,7.0063,142.71,142.7,0.0506274]
[1742905921875,7.0063,142.71,142.7,2.74e-05]
[1742905922082,14.0063,142.71,142.7,2.74e-05]
[1742905922381,7.01,142.64,142.55,240.88746707]
[1742905922581,33.75409581,142.74,142.56,28.56]
[1742905922784,7.008,142.68,142.56,28.56]
[1742905922979,33.75409581,142.74,142.56,28.56]
[1742905923284,33.75409581,142.74,142.64,0.04594358]
[1742905923482,33.75409581,142.74,142.56,28.56]
[1742905923682,0.05035133,142.7,142.68,4.55e-05]
[1742905923982,33.75409581,142.74,142.56,28.56]
[1742905924181,33.75409581,142.74,142.6,7.0114]
[1742905924381,7.0092,142.66,142.6,7.0114]
[1742905924582,7.0092,142.66,142.61,7.0109]
[1742905924778,7.0092,142.66,142.56,28.56]
[1742905925084,0.04883922,142.65,142.62,0.05287722]
[1742905925284,7.05823922,142.65,142.62,0.05287722]
[1742905926289,0.04883922,142.65,142.62,0.05287722]
[1742905926586,7.0103,142.63,142.62,0.05287722]
[1742905928082,7.0103,142.63,142.62,7.722e-05]
[1742905929889,0.04883922,142.65,142.62,7.722e-05]
[1742905930482,7.0103,142.63,142.62,7.722e-05]
[1742905930882,14.0303,142.63,142.62,7.722e-05]
[1742905931085,7.0135,142.57,142.5,62.54968995]
[1742905931282,358.0,142.67,142.5,62.54968995]
[1742905931489,7.012,142.6,142.5,62.54968995]
[1742905931685,358.0,142.67,142.5,62.54968995]
[1742905931686,1.22083845,142.66,142.5,62.54968995]
[1742905931889,1.22083845,142.66,142.53,7.015]
[1742905932189,0.04978908,142.59,142.57,0.04547354]
[1742905932484,7.0154,142.53,142.5,62.54968995]
[1742905932688,0.05193489,142.59,142.5,62.54968995]
[1742905932886,33.75409581,142.61,142.47,38.42986829]
[1742905933083,33.75409581,142.61,142.49,7.0168]
[1742905933283,7.0157,142.52,142.47,38.42986829]
[1742905933589,7.0157,142.52,142.48,7.0172]
[1742905933792,0.04560959,142.51,142.48,0.05033014]
[1742905933981,379.06,142.63,142.47,38.42986829]
[1742905934288,0.05090124,142.51,142.48,0.0468825]
[1742905934487,33.75409581,142.58,142.47,38.42986829]
[1742905934681,0.05068822,142.51,142.48,0.05072429]
[1742905934885,7.0169,142.5,142.47,38.42986829]
[1742905935083,7.0169,142.5,142.48,0.05219187]
[1742905935390,7.0171,142.49,142.48,0.05219187]
[1742905935889,0.04586361,142.51,142.48,0.05219187]
[1742905936383,0.04586361,142.51,142.49,7.0171]
[1742905936789,0.04586361,142.51,142.48,0.05219187]
[1742905937695,0.04586361,142.51,142.48,7.06969187]
[1742905937887,0.04586361,142.51,142.48,0.05219187]
[1742905938188,0.04586361,142.51,142.49,7.0168]
[1742905938390,0.04586361,142.51,142.48,0.05219187]
[1742905938581,0.04586361,142.51,142.48,7.06939187]
[1742905938785,0.04586361,142.51,142.48,0.05219187]
[1742905939578,0.04586361,142.51,142.49,7.0171]
[1742905939779,0.04586361,142.51,142.48,0.05219187]
[1742905939982,0.04586361,142.51,142.5,7.0167]
[1742905941080,0.04586361,142.51,142.49,7.017]
[1742905941687,0.04586361,142.51,142.5,7.0167]
[1742905943985,0.04586361,142.51,142.49,7.017]
[1742905944895,0.04586361,142.51,142.48,0.05219187]
[1742905945088,7.06226361,142.51,142.48,0.05219187]
[1742905945590,0.04586361,142.51,142.48,0.05219187]
[1742905945988,0.04586361,142.51,142.48,7.06949187]
[1742905946188,0.04586361,142.51,142.48,0.05219187]
[1742905946388,7.0194,142.45,142.36,259.5]
[1742905946589,1.22197447,142.53,142.41,7.0208]
[1742905946790,7.019,142.46,142.41,7.0208]
[1742905946992,1.22197447,142.53,142.41,7.0208]
[1742905947190,1.22197447,142.53,142.4,7.0214]
[1742905947495,7.0192,142.45,142.44,0.05088276]
[1742905947792,7.0192,142.45,142.41,7.0211]
[1742905947995,7.0192,142.45,142.43,0.05308178]
[1742905948196,7.06441449,142.46,142.43,0.05308178]
[1742905949292,0.04561449,142.46,142.43,0.05308178]
[1742905950497,5.712e-05,142.46,142.45,7.0191]
[1742905953400,5.712e-05,142.46,142.43,0.05308178]
[1742905953900,5.712e-05,142.46,142.45,7.0191]
[1742905954502,7.01875712,142.46,142.43,0.05308178]
[1742905954697,5.712e-05,142.46,142.43,0.05308178]
[1742905956995,7.0192,142.45,142.43,0.05308178]
[1742905957197,5.712e-05,142.46,142.43,0.05308178]
[1742905957602,5.712e-05,142.46,142.44,7.0193]
[1742905957804,5.712e-05,142.46,142.43,0.05308178]
[1742905958302,7.0194,142.45,142.43,0.05308178]
[1742905958603,5.712e-05,142.46,142.43,0.05308178]
[1742905958902,7.0196,142.44,142.43,0.05308178]
[1742905960297,7.0193,142.45,142.43,0.05308178]
[1742905961204,7.0196,142.44,142.43,0.05308178]
[1742905962107,7.0214,142.41,142.35,27.74]
[1742905962708,20.85165688,142.49,142.33,498.29093568]
[1742905962901,1.40370578,142.48,142.33,526.03093568]
[1742905963307,0.04761821,142.42,142.33,526.03093568]
[1742905963503,0.04761821,142.42,142.39,0.04801477]
[1742905963704,0.04786943,142.41,142.33,526.03093568]
[1742905963904,7.0216,142.4,142.39,0.04707676]
[1742905964107,0.04786943,142.41,142.33,498.29093568]
[1742905964310,7.0223,142.39,142.38,0.04675799]
[1742905965403,0.05268772,142.4,142.38,0.04675799]
[1742905965707,0.05268772,142.4,142.38,7.06885799]
[1742905965909,0.05268772,142.4,142.38,0.04675799]
[1742905967005,7.07448772,142.4,142.38,0.04675799]
[1742905967207,0.05268772,142.4,142.38,0.04675799]
[1742905967511,0.05268772,142.4,142.38,7.06935799]
[1742905967714,0.05268772,142.4,142.38,0.04675799]
[1742905968112,7.0221,142.39,142.38,0.04675799]
[1742905968307,0.05268772,142.4,142.38,0.04675799]
[1742905969215,7.0221,142.39,142.38,0.04675799]
[1742905971716,0.05268772,142.4,142.27,365.0]
[1742905971916,20.85165688,142.43,142.24,273.4388]
[1742905972117,22.25585543,142.43,142.24,273.4388]
[1742905972320,14.0427,142.41,142.3,7.0265]
[1742905972519,14.0427,142.41,142.24,273.4388]
[1742905972920,0.05201705,142.34,142.31,0.05164033]
[1742905973117,7.0246,142.34,142.31,7.0257]
[1742905973318,7.07768059,142.34,142.31,7.07056127]
[1742905973519,0.05308059,142.34,142.31,0.04486127]
[1742905974123,0.05308059,142.34,142.32,7.0252]
[1742905974922,0.05308059,142.34,142.33,7.025]
[1742905975317,7.0223,142.39,142.36,7.0233]
[1742905975520,1.40419855,142.43,142.28,27.64]
[1742905975717,1.40419855,142.43,142.29,14.0536]
[1742905976125,7.0221,142.39,142.36,7.0232]
[1742905976622,7.0746015,142.39,142.36,0.05038879]
[1742905977026,7.0746015,142.39,142.36,7.07368879]
[1742905977622,7.0746015,142.39,142.37,7.0231]
[1742905978224,7.0746015,142.39,142.36,7.07348879]
[1742905978527,7.0746015,142.39,142.36,0.05038879]
[1742905978528,0.0525015,142.39,142.36,0.05038879]
[1742905980225,7.0228,142.38,142.36,0.05038879]
[1742905981028,7.0231,142.37,142.36,0.05038879]
[1742905982325,0.0525015,142.39,142.26,27.5]
[1742905982626,36.29665543,142.43,142.3,7.0262]
[1742905982627,22.25585543,142.43,142.3,7.0262]
[1742905982826,7.0253,142.33,142.3,7.0262]
[1742905983030,14.0433,142.4,142.24,606.26746707]
[1742905983326,7.0238,142.36,142.25,27.48]
[1742905983531,0.05270707,142.33,142.31,0.04439014]
[1742905983731,14.0443,142.39,142.28,7.0271]
[1742905983925,7.0258,142.32,142.31,0.04478004]
[1742905984130,14.0473,142.36,142.23,7.0296]
[1742905984431,7.0284,142.27,142.19,38.42986829]
[1742905984634,7.0284,142.27,142.22,7.0301]
[1742905984829,7.0284,142.27,142.19,38.42986829]
[1742905985332,0.05129625,142.24,142.22,0.04647416]
[1742905985530,20.85165688,142.34,142.19,38.42986829]
[1742905985830,7.03,142.23,142.19,38.42986829]
[1742905986127,0.04499796,142.28,142.25,0.05248177]
[1742905986330,20.85165688,142.31,142.19,38.42986829]
[1742905986528,0.05219669,142.28,142.25,0.047919]
[1742905986924,7.028,142.27,142.25,0.047919]
[1742905987325,7.02,142.27,142.17,0.22909779]
[1742905987524,20.85165688,142.31,142.17,0.22909779]
[1742905988129,7.0318,142.2,142.17,0.22909779]
[1742905988330,20.85165688,142.28,142.17,0.22909779]
[1742905988527,0.05381055,142.2,142.17,0.27499124]
[1742905988831,15.27728827,142.3,142.18,7.0324]
[1742905989031,16.68276964,142.3,142.18,7.0324]
[1742905989231,7.0304,142.23,142.18,7.0324]
[1742905989434,1.40548137,142.3,142.23,0.05225256]
[1742905989630,1.40548137,142.3,142.17,0.22909779]
[1742905989631,0.04865982,142.22,142.17,0.22909779]
[1742905989827,1.40548137,142.3,142.17,0.22909779]
[1742905989828,1.40548137,142.3,142.24,0.05289997]
[1742905990034,1.40548137,142.3,142.21,7.0308]
[1742905990236,0.04872284,142.28,142.26,0.05211448]
[1742905990737,0.04872284,142.28,142.17,0.22909779]
[1742905991033,1.40548137,142.3,142.21,7.0306]
[1742905991734,7.0278,142.28,142.22,7.0301]
[1742905991935,0.05012973,142.27,142.24,0.04900978]
[1742905993530,0.05012973,142.27,142.24,7.07850978]
[1742905993730,0.05012973,142.27,142.24,0.04900978]
[1742905995136,7.07822973,142.27,142.24,0.04900978]
[1742905995531,0.05012973,142.27,142.24,0.04900978]
[1742905996638,0.05012973,142.27,142.24,7.07850978]
[1742905997738,1.2236502,142.34,142.25,27.5]
[1742905997928,369.78666235,142.43,142.25,27.5]
[1742905997929,390.63831923,142.43,142.25,27.5]
[1742905998132,1.40429714,142.42,142.34,7.0241]
[1742905998538,1.40429714,142.42,142.29,27.62]
[1742905998836,0.05016494,142.37,142.34,0.05225907]
[1742905999435,7.07336494,142.37,142.34,0.05225907]
[1742905999637,0.05016494,142.37,142.34,0.05225907]
[1742906001244,0.05016494,142.37,142.27,27.64]
[1742906001439,20.85165688,142.4,142.26,231.96]
[1742906001741,20.85165688,142.4,142.24,27.58]
[1742906002239,20.85165688,142.4,142.28,7.0273]
[1742906002442,0.05220718,142.33,142.31,0.04753124]
[1742906002639,20.85165688,142.4,142.27,7.0278]
[1742906002841,0.05298427,142.33,142.31,0.04910673]
[1742906003136,20.85165688,142.37,142.21,392.56]
[1742906003336,7.0262,142.31,142.25,7.0289]
[1742906004143,0.05284759,142.29,142.27,0.0535301]
[1742906005037,7.0288,142.26,142.17,365.22909779]
[1742906005243,7.0288,142.26,142.2,7.0312]
[1742906005438,7.0282,142.27,142.17,0.22909779]
[1742906005644,20.85165688,142.34,142.2,7.0315]
[1742906005938,1.40518513,142.33,142.2,7.0315]
[1742906006142,0.04793602,142.28,142.26,0.04727375]
[1742906006539,7.028,142.27,142.26,0.04727375]
[1742906007245,0.04826825,142.28,142.26,0.04727375]
[1742906007837,0.04826825,142.28,142.27,7.028]
[1742906009037,0.04826825,142.28,142.26,7.07557375]
[1742906009234,0.04826825,142.28,142.26,0.04727375]
[1742906011046,0.04826825,142.28,142.14,596.9]
[1742906011247,1.40518513,142.33,142.19,7.0319]
[1742906011745,2.62885685,142.33,142.19,7.0319]
[1742906011945,7.0293,142.25,142.19,7.0319]
[1742906012135,0.04500068,142.27,142.14,596.9]
[1742906012338,14.0511,142.32,142.14,596.9]
[1742906012536,7.08334999,142.23,142.14,596.9]
[1742906012747,7.0303,142.23,142.14,596.9]
[1742906012946,0.04791865,142.21,142.14,596.9]
[1742906013148,0.04791865,142.21,142.18,7.0323]
[1742906013441,0.04791865,142.21,142.14,231.9]
[1742906013751,7.0318,142.2,142.16,7.0334]
[1742906014239,7.0322,142.19,142.15,7.0337]
[1742906014440,7.0322,142.19,142.14,231.9]
[1742906014647,0.04791865,142.21,142.16,7.033]
[1742906014946,0.04791865,142.21,142.14,231.9]
[1742906015843,0.04791865,142.21,142.17,7.26179779]
[1742906016046,0.04791865,142.21,142.17,0.22909779]
[1742906016449,0.04791865,142.21,142.18,7.0321]
[1742906017051,0.04791865,142.21,142.19,7.0317]
[1742906017252,0.04791865,142.21,142.17,0.22909779]
[1742906017747,0.04791865,142.21,142.2,7.0315]
[1742906019448,34.90105688,142.34,142.17,0.22909779]
[1742906019653,14.0494,142.34,142.17,0.22909779]
[1742906019852,7.0285,142.26,142.17,0.22909779]
[1742906020052,7.0285,142.26,142.23,7.0297]
[1742906020557,7.029,142.25,142.23,7.0779649]
[1742906020748,0.05150939,142.26,142.23,0.0482649]
[1742906021243,7.0295,142.24,142.23,0.0482649]
[1742906023354,0.05150939,142.26,142.23,0.0482649]
[1742906023355,7.0292,142.25,142.23,0.0482649]
[1742906025551,7.0295,142.24,142.23,0.0482649]
[1742906026056,0.05150939,142.26,142.23,0.0482649]
[1742906026458,7.0293,142.25,142.23,0.0482649]
[1742906026846,0.05150939,142.26,142.23,0.0482649]
[1742906027259,7.0294,142.25,142.23,0.0482649]
[1742906029055,0.05150939,142.26,142.23,0.0482649]
[1742906029458,7.08020939,142.26,142.23,0.0482649]
[1742906029855,0.05150939,142.26,142.23,0.0482649]
[1742906030762,7.08020939,142.26,142.23,7.0779649]
[1742906031760,7.029,142.25,142.23,7.0779649]
[1742906031961,7.029,142.25,142.23,0.0482649]
[1742906032363,7.0295,142.24,142.23,0.0482649]
[1742906039675,14.0584,142.25,142.17,0.22909779]
[1742906040872,7.0324,142.18,142.17,0.22909779]
[1742906041179,7.0324,142.18,142.17,9.779e-05]
[1742906041475,7.0354,142.12,142.11,38.42986829]
[1742906042270,7.0354,142.12,142.11,27.54876829]
[1742906042479,0.0532062,142.13,142.09,104.23852059]
[1742906042673,13.13133278,142.13,142.09,4.42707435]
[1742906042877,13.07812658,142.11,142.08,170.50630765]
[1742906043071,13.07812658,142.11,141.96,597.04]
[1742906043072,13.07812658,142.11,142.04,140.00482]
[1742906043274,0.0532062,142.13,142.04,140.00482]
[1742906043470,13.07812658,142.13,142.04,140.00482]
[1742906043675,0.05381185,142.1,142.04,140.00482]
[1742906044077,371.07812658,142.09,142.04,140.00482]
[1742906044269,13.07812658,142.07,142.02,170.50630765]
[1742906044466,358.0,142.08,142.02,170.50630765]
[1742906044675,13.07812658,142.09,142.02,170.50630765]
[1742906044874,0.04752074,142.06,142.02,170.50630765]
[1742906045272,1.29395121,142.11,142.02,170.50630765]
[1742906045473,0.04723732,142.05,142.02,170.50630765]
[1742906045776,0.05071477,142.05,141.98,0.4214606]
[1742906047077,0.05071477,142.05,141.99,7.0418]
[1742906047274,0.05071477,142.05,141.98,0.4214606]
[1742906047677,7.08961477,142.05,141.98,0.4214606]
[1742906048276,38.48945198,142.01,141.98,0.4214606]
[1742906048677,38.53511297,142.01,141.98,0.4214606]
[1742906049374,38.53511297,142.01,141.99,7.0415]
[1742906049781,38.53511297,142.01,141.98,0.4214606]
[1742906050476,0.04566099,142.01,141.93,27.48]
[1742906050672,0.04566099,142.01,142.0,7.0414]
[1742906051777,0.04566099,142.01,142.0,6.48486815]
[1742906051978,0.04566099,142.01,141.99,7.0417]
[1742906052380,9.73245741,142.02,141.99,7.0417]
[1742906052578,0.04438524,142.01,141.99,7.0417]
[1742906053079,0.04438524,142.01,142.0,7.0414]
[1742906053279,61.22552149,142.04,141.96,27.46]
[1742906053484,0.05087763,142.02,141.96,27.46]
[1742906053682,61.22552149,142.04,141.97,20.9933199]
[1742906053879,61.22552149,142.04,142.0,27.48]
[1742906054084,61.22552149,142.04,142.03,7.0399]
[1742906054682,38.48945198,142.04,142.03,7.0399]
[1742906055080,38.48945198,142.04,141.93,27.46]
[1742906055884,7.0389,142.05,142.0,7.0411]
[1742906056087,39.47045844,142.06,141.93,27.46]
[1742906056282,0.05022231,142.04,142.01,7.0405]
[1742906056481,32.43195844,142.06,142.01,7.0405]
[1742906056680,0.05164966,142.04,142.01,7.0405]
[1742906057084,38.54110164,142.04,142.01,7.0405]
[1742906057676,38.54110164,142.04,142.0,7.0412]
[1742906057884,38.48945198,142.04,141.93,27.46]
[1742906058083,0.04726878,142.03,141.93,27.46]
[1742906058377,0.04967623,141.99,141.93,27.46]
[1742906058986,0.04967623,141.99,141.98,7.0424]
[1742906060987,32.43195844,142.03,142.02,34.4204]
[1742906061175,28.75699457,142.04,142.02,27.38]
[1742906061381,28.75699457,142.04,142.03,7.0399]
[1742906062076,0.05203271,142.05,142.02,27.43376934]
[1742906062687,0.05203271,142.05,142.04,7.0394]
[1742906065489,0.05203271,142.05,142.02,0.05376934]
[1742906066080,0.05203271,142.05,142.04,7.0394]
[1742906066588,0.05203271,142.05,142.02,0.05376934]
[1742906067490,0.05203271,142.05,142.04,7.0394]
[1742906067891,0.05203271,142.05,142.02,0.05376934]
[1742906068686,0.05203271,142.05,142.04,7.0394]
[1742906069391,0.05203271,142.05,142.03,7.0396]
[1742906070083,28.75699457,142.07,142.03,27.28]
[1742906070287,115.38106672,142.08,142.03,27.28]
[1742906071087,140.9587643,142.09,142.08,27.26]
[1742906071293,23.85205944,142.09,142.08,27.26]
[1742906071592,23.85205944,142.09,142.08,34.2974]
[1742906071883,125.58447993,142.1,142.08,7.04]
[1742906072085,191.76887944,142.11,142.08,7.04]
[1742906072286,191.76887944,142.11,142.1,34.4564]
[1742906072790,169.74257944,142.11,142.1,41.4964]
[1742906072991,153.42657944,142.11,142.1,41.4964]
[1742906073192,112.52757944,142.11,142.1,41.4964]
[1742906073388,77.42597688,142.11,142.1,41.4964]
[1742906073589,37.82567688,142.11,142.1,41.4964]
[1742906073789,124.95503193,142.12,142.11,7.0359]
[1742906074693,0.04912108,142.12,142.11,7.0359]
[1742906076494,0.04912108,142.12,142.11,139.27552163]
[1742906077697,13.11006463,142.24,142.11,132.23962163]
[1742906077996,13.11006463,142.22,142.11,132.23962163]
[1742906078191,13.11006463,142.2,142.11,132.23962163]
[1742906078897,0.05143081,142.17,142.14,5.698e-05]
[1742906079292,7.0339,142.15,142.14,5.698e-05]
[1742906082892,7.0354,142.12,142.11,63.55545123]
[1742906084588,7.0359,142.11,142.1,0.0464277]
[1742906087200,0.04564612,142.13,142.1,0.0464277]
[1742906087901,0.04564612,142.13,142.1,2.77e-05]
[1742906088505,7.0359,142.11,142.1,2.77e-05]
[1742906088905,0.04564612,142.13,142.05,106.69481995]
[1742906089102,13.11006463,142.14,142.05,106.69481995]
[1742906089103,7.0384,142.06,142.05,106.69481995]
[1742906089401,7.0384,142.06,142.05,56.59013236]
[1742906089605,13.11006463,142.09,142.03,157.74258581]
[1742906090109,0.04603501,142.07,142.05,0.05071071]
[1742906090405,0.04603501,142.07,142.05,1.071e-05]
[1742906090702,7.0384,142.06,142.05,1.071e-05]
[1742906091308,0.04603501,142.07,142.05,1.071e-05]
[1742906091309,7.08413501,142.07,142.05,1.071e-05]
[1742906091908,0.04603501,142.07,142.05,1.071e-05]
[1742906092503,0.04603501,142.07,142.06,7.0384]
[1742906093112,0.04603501,142.07,142.05,1.071e-05]
[1742906093708,7.0384,142.06,142.05,1.071e-05]
[1742906094109,0.04603501,142.07,141.97,116.39434904]
[1742906094309,13.11006463,142.1,141.97,116.39434904]
[1742906094909,7.0401,142.03,141.97,116.39434904]
[1742906095310,0.05022596,142.01,141.99,0.05069754]
[1742906097412,0.05022596,142.01,141.91,116.39434904]
[1742906097709,20.99112894,142.06,141.91,123.43994904]
[1742906097910,7.0433,141.97,141.91,123.43994904]
[1742906098110,23.62502761,142.06,141.91,116.39434904]
[1742906098512,7.0437,141.96,141.91,116.39434904]
[1742906098917,0.04678256,141.95,141.91,116.39434904]
[1742906099111,0.04678256,141.95,141.87,27.42]
[1742906099311,0.04678256,141.95,141.89,7.0465]
[1742906099716,7.0443,141.94,141.9,7.0463]
[1742906100010,0.04678256,141.95,141.87,27.42]
[1742906100214,14.0788,142.04,141.87,27.42]
[1742906100414,0.0510862,141.92,141.91,7.0455]
[1742906100614,14.0788,142.04,141.91,7.0455]
[1742906101710,0.04589726,141.99,141.96,0.0470762]
[1742906101911,0.04589726,141.99,141.85,624.64]
[1742906102307,7.0457,141.92,141.87,7.0476]
[1742906103017,7.0457,141.92,141.85,597.28]
[1742906103213,7.09148623,141.91,141.85,597.28]
[1742906103420,7.0459,141.91,141.85,597.28]
[1742906103617,0.05178175,141.89,141.86,7.048]
[1742906104018,0.05178175,141.89,141.85,597.28]
[1742906104314,0.05178175,141.89,141.87,7.0475]
[1742906104518,0.05178175,141.89,141.84,213.4224265]
[1742906105911,0.05178175,141.89,141.8,402.06626049]
[1742906106111,20.99112894,141.97,141.84,7.049]
[1742906106308,0.05399786,141.86,141.84,7.049]
[1742906106511,20.99112894,141.94,141.8,9.68626049]
[1742906106714,0.05175968,141.86,141.8,9.68626049]
[1742906106915,0.05175968,141.86,141.8,37.30626049]
[1742906107220,0.05175968,141.86,141.8,9.68626049]
[1742906107419,0.05175968,141.86,141.81,7.0505]
[1742906107919,7.0496,141.84,141.8,9.68626049]
[1742906108220,0.05175968,141.86,141.8,9.68626049]
[1742906108714,7.0508,141.81,141.8,9.68626049]
[1742906108911,20.99112894,141.82,141.78,116.39434904]
[1742906109114,21.03550787,141.82,141.76,242.48822717]
[1742906109720,21.03550787,141.82,141.73,7.0547]
[1742906109920,20.99112894,141.85,141.69,230.22409922]
[1742906110423,0.05044707,141.79,141.69,230.22409922]
[1742906110623,20.99112894,141.85,141.69,230.22409922]
[1742906110922,0.0538954,141.75,141.69,230.22409922]
[1742906111125,1.41003948,141.84,141.69,230.22409922]
[1742906111320,0.0448948,141.73,141.69,230.22409922]
[1742906111519,1.41003948,141.84,141.69,230.22409922]
[1742906112022,0.0473796,141.78,141.69,230.22409922]
[1742906112221,1.41003948,141.84,141.69,230.22409922]
[1742906112518,7.0507,141.82,141.75,7.0534]
[1742906112719,0.04673971,141.78,141.75,7.0534]
[1742906113720,0.04673971,141.78,141.68,27.84]
[1742906114026,28.85366942,141.81,141.66,28.57610123]
[1742906114218,0.04916821,141.74,141.72,7.0548]
[1742906114419,0.04916821,141.74,141.66,28.57610123]
[1742906114614,28.85366942,141.81,141.66,28.57610123]
[1742906114820,0.04720867,141.71,141.7,7.0563]
[1742906115021,28.85366942,141.81,141.66,0.77610123]
[1742906115320,7.0519,141.79,141.74,7.0541]
[1742906115629,0.05208677,141.75,141.66,28.59610123]
[1742906115824,31.49185028,141.84,141.66,28.59610123]
[1742906116024,7.354e-05,141.72,141.7,27.8]
[1742906116220,30.2637089,141.84,141.7,27.8]
[1742906116423,7.0506,141.82,141.77,7.0525]
[1742906116830,7.0506,141.82,141.7,27.8]
[1742906117121,30.2637089,141.84,141.75,0.04795417]
[1742906117320,1.41003948,141.84,141.7,27.8]
[1742906117522,0.05019879,141.81,141.78,0.05143355]
[1742906118118,0.05019879,141.81,141.8,7.0513]
[1742906120823,0.05019879,141.81,141.75,27.8]
[1742906121423,0.05019879,141.81,141.8,7.0513]
[1742906122827,30.98620614,141.88,141.8,7.06]
[1742906123029,30.98620614,141.88,141.79,27.74]
[1742906123233,38.03380614,141.88,141.79,27.74]
[1742906123428,30.98620614,141.88,141.79,27.74]
[1742906123927,0.04573262,141.85,141.84,7.049]
[1742906124321,0.04573262,141.85,141.83,7.0495]
[1742906124522,0.04573262,141.85,141.82,0.04898829]
[1742906125321,0.04573262,141.85,141.84,7.0493]
[1742906128224,9.60196679,141.94,141.88,7.0472]
[1742906128530,9.60196679,141.94,141.83,27.66]
[1742906128931,7.0453,141.93,141.83,27.66]
[1742906129131,9.60196679,141.94,141.83,27.66]
[1742906129426,9.60196679,141.94,141.87,0.04443837]
[1742906129631,0.05177528,141.9,141.87,0.04443837]
[1742906130333,0.05177528,141.9,141.88,7.047]
[1742906131033,0.05177528,141.9,141.89,7.0468]
[1742906132032,38.45563621,141.93,141.92,7.0453]
[1742906132235,38.45563621,141.93,141.87,27.52]
[1742906132729,358.0,141.99,141.87,27.52]
[1742906132930,15.30673978,142.03,141.87,27.52]
[1742906133132,16.71489298,142.03,141.87,27.52]
[1742906133329,7.0446,141.94,141.87,27.52]
[1742906133534,14.081,142.02,141.87,27.52]